[Event "*** Titled Tuesday Blitz"]
[Site "Chess.com"]
[Date "2020.03.03"]
[Round "8"]
[White "karwowskikacper"]
[Black "Boorchess"]
[Result "1-0"]
[WhiteElo "2379"]
[BlackElo "2505"]
[TimeControl "180+1"]
[EndTime "10:27:17 PST"]
[Termination "karwowskikacper won by resignation"]

1. e4 {[%clk 0:03:00.9]} 1... e6 {[%clk 0:02:53]} 2. d3 {[%clk 0:02:59.2]} 2...
c5 {[%clk 0:02:52.2]} 3. g3 {[%clk 0:02:58.4]} 3... Nc6 {[%clk 0:02:52]} 4. Bg2
{[%clk 0:02:58.7]} 4... h5 {[%clk 0:02:51.7]} 5. h4 {[%clk 0:02:55.6]} 5... Nf6
{[%clk 0:02:50.5]} 6. Nd2 {[%clk 0:02:52.4]} 6... d5 {[%clk 0:02:49.2]} 7. Ngf3
{[%clk 0:02:52.6]} 7... Be7 {[%clk 0:02:48]} 8. O-O {[%clk 0:02:52.6]} 8... b5
{[%clk 0:02:45.8]} 9. e5 {[%clk 0:02:52.5]} 9... Nd7 {[%clk 0:02:44.2]} 10. Re1
{[%clk 0:02:51.2]} 10... Bb7 {[%clk 0:02:43.2]} 11. Nf1 {[%clk 0:02:49.2]} 11...
Qb6 {[%clk 0:02:36.3]} 12. Bg5 {[%clk 0:02:47.5]} 12... O-O-O {[%clk 0:02:35.4]}
13. Bxe7 {[%clk 0:02:46.9]} 13... Nxe7 {[%clk 0:02:34.1]} 14. Ng5 {[%clk
0:02:47.5]} 14... Rdf8 {[%clk 0:02:32]} 15. c3 {[%clk 0:02:33.3]} 15... a5
{[%clk 0:02:26.6]} 16. Bh3 {[%clk 0:02:29.4]} 16... Kb8 {[%clk 0:02:25.8]} 17.
d4 {[%clk 0:02:29.5]} 17... g6 {[%clk 0:02:23]} 18. Ne3 {[%clk 0:02:26.5]} 18...
Nf5 {[%clk 0:02:17.9]} 19. Nxf5 {[%clk 0:02:18.9]} 19... gxf5 {[%clk 0:02:16.1]}
20. a3 {[%clk 0:02:15.7]} 20... cxd4 {[%clk 0:02:11.7]} 21. cxd4 {[%clk
0:02:15.5]} 21... Ka7 {[%clk 0:02:08.9]} 22. Rc1 {[%clk 0:02:09.6]} 22... Nb8
{[%clk 0:02:08.7]} 23. Re2 {[%clk 0:02:02.7]} 23... Nc6 {[%clk 0:02:07.8]} 24.
Rd2 {[%clk 0:02:03.1]} 24... Rh6 {[%clk 0:01:51.7]} 25. Bf1 {[%clk 0:02:01.6]}
25... Rhh8 {[%clk 0:01:36.2]} 26. Be2 {[%clk 0:01:59]} 26... Ba6 {[%clk
0:01:20.5]} 27. Bxh5 {[%clk 0:01:54.7]} 27... Nxd4 {[%clk 0:01:08.3]} 28. Bxf7
{[%clk 0:01:54.2]} 28... Rxf7 {[%clk 0:00:59.6]} 29. Nxf7 {[%clk 0:01:52.9]}
29... Rf8 {[%clk 0:00:57.5]} 30. Rxd4 {[%clk 0:01:37.4]} 30... Rxf7 {[%clk
0:00:56.3]} 31. b4 {[%clk 0:01:37.6]} 31... f4 {[%clk 0:00:55.5]} 32. Rc5 {[%clk
0:01:32.5]} 32... fxg3 {[%clk 0:00:54.6]} 33. fxg3 {[%clk 0:01:33.4]} 33... Qd8
{[%clk 0:00:52.8]} 34. Qg4 {[%clk 0:01:30.9]} 34... Qf8 {[%clk 0:00:51.6]} 35.
Rf4 {[%clk 0:01:30.2]} 35... d4 {[%clk 0:00:48.1]} 36. Rc7+ {[%clk 0:01:25.3]}
36... Rxc7 {[%clk 0:00:43.4]} 37. Rxf8 {[%clk 0:01:25.2]} 37... d3 {[%clk
0:00:43.4]} 38. Qd4+ {[%clk 0:01:24.3]} 1-0

[Event "*** Titled Tuesday Blitz"]
[Site "Chess.com"]
[Date "2020.03.03"]
[Round "8"]
[White "ZEN-22"]
[Black "Zarikovs1999"]
[Result "1-0"]
[WhiteElo "2263"]
[BlackElo "2336"]
[TimeControl "180+1"]
[EndTime "10:27:41 PST"]
[Termination "ZEN-22 won by checkmate"]

1. e3 {[%clk 0:03:00.9]} 1... e5 {[%clk 0:02:57.9]} 2. Ne2 {[%clk 0:03:01.8]}
2... Nf6 {[%clk 0:02:50.4]} 3. d4 {[%clk 0:03:02.7]} 3... Nc6 {[%clk 0:02:49.3]}
4. Nbc3 {[%clk 0:03:00.5]} 4... Bd6 {[%clk 0:02:38]} 5. Nb5 {[%clk 0:02:56.6]}
5... Bb4+ {[%clk 0:02:28.5]} 6. c3 {[%clk 0:02:56.3]} 6... Be7 {[%clk
0:02:23.9]} 7. d5 {[%clk 0:02:56.2]} 7... Nb8 {[%clk 0:02:22.8]} 8. d6 {[%clk
0:02:55.8]} 8... cxd6 {[%clk 0:02:16.3]} 9. Nxd6+ {[%clk 0:02:56.7]} 9... Bxd6
{[%clk 0:02:16.5]} 10. Qxd6 {[%clk 0:02:56.5]} 10... Nc6 {[%clk 0:02:17.4]} 11.
Ng3 {[%clk 0:02:54.6]} 11... g6 {[%clk 0:02:13.1]} 12. b3 {[%clk 0:02:41.5]}
12... Qe7 {[%clk 0:02:12.3]} 13. Ba3 {[%clk 0:02:39.6]} 13... Qxd6 {[%clk
0:02:08.1]} 14. Bxd6 {[%clk 0:02:40.5]} 14... h5 {[%clk 0:02:05]} 15. Bd3 {[%clk
0:02:36.9]} 15... b6 {[%clk 0:02:00.2]} 16. Ne4 {[%clk 0:02:33.7]} 16... Nxe4
{[%clk 0:01:59.2]} 17. Bxe4 {[%clk 0:02:34.6]} 17... Bb7 {[%clk 0:01:59]} 18.
Bxe5 {[%clk 0:02:29.9]} 18... Nxe5 {[%clk 0:01:55.7]} 19. Bxb7 {[%clk
0:02:29.4]} 19... Rb8 {[%clk 0:01:56.6]} 20. Bd5 {[%clk 0:02:29.6]} 20... Ke7
{[%clk 0:01:54.3]} 21. Ke2 {[%clk 0:02:29.3]} 21... Rhc8 {[%clk 0:01:51.9]} 22.
Rac1 {[%clk 0:02:29.5]} 22... d6 {[%clk 0:01:49.5]} 23. h3 {[%clk 0:02:28.6]}
23... b5 {[%clk 0:01:27.1]} 24. Rhd1 {[%clk 0:02:29.5]} 24... a5 {[%clk
0:01:24.2]} 25. f4 {[%clk 0:02:29.6]} 25... Nd7 {[%clk 0:01:21.6]} 26. c4 {[%clk
0:02:28.3]} 26... bxc4 {[%clk 0:01:17.7]} 27. Rxc4 {[%clk 0:02:26.6]} 27... Nb6
{[%clk 0:01:14.4]} 28. Rxc8 {[%clk 0:02:24.4]} 28... Rxc8 {[%clk 0:01:15.3]} 29.
Be4 {[%clk 0:02:24.8]} 29... a4 {[%clk 0:01:10.2]} 30. Kd2 {[%clk 0:02:22.9]}
30... f5 {[%clk 0:01:07.7]} 31. Bc2 {[%clk 0:02:20.1]} 31... Rc5 {[%clk
0:00:45.3]} 32. bxa4 {[%clk 0:02:16.3]} 32... Nc4+ {[%clk 0:00:42.3]} 33. Ke2
{[%clk 0:02:15.4]} 33... Nxe3 {[%clk 0:00:36.3]} 34. Kxe3 {[%clk 0:02:13.1]}
34... Rxc2 {[%clk 0:00:36]} 35. Rd2 {[%clk 0:02:13]} 35... Rc4 {[%clk
0:00:35.9]} 36. Rd4 {[%clk 0:02:07.1]} 36... Rc2 {[%clk 0:00:34.9]} 37. a3
{[%clk 0:02:07.2]} 37... Rxg2 {[%clk 0:00:34.5]} 38. Rd3 {[%clk 0:02:07.1]}
38... Rc2 {[%clk 0:00:24.1]} 39. Kd4 {[%clk 0:02:04.2]} 39... Kd7 {[%clk
0:00:13.2]} 40. Rg3 {[%clk 0:02:03.4]} 40... Re2 {[%clk 0:00:11.3]} 41. Rxg6
{[%clk 0:02:01.7]} 41... Re4+ {[%clk 0:00:11.2]} 42. Kd5 {[%clk 0:02:02.1]}
42... Rxa4 {[%clk 0:00:10.9]} 43. Rg7+ {[%clk 0:02:02.1]} 43... Ke8 {[%clk
0:00:10.3]} 44. Ke6 {[%clk 0:02:01.3]} 44... Kf8 {[%clk 0:00:08.8]} 45. Rf7+
{[%clk 0:02:01]} 45... Ke8 {[%clk 0:00:07.2]} 46. Rxf5 {[%clk 0:02:01.9]} 46...
Rxa3 {[%clk 0:00:07.3]} 47. Rxh5 {[%clk 0:02:01.6]} 47... Rf3 {[%clk 0:00:05.8]}
48. Rh8# {[%clk 0:02:01.1]} 1-0

[Event "*** Titled Tuesday Blitz"]
[Site "Chess.com"]
[Date "2020.03.03"]
[Round "8"]
[White "afgano29"]
[Black "Dixit_Nikhil"]
[Result "0-1"]
[WhiteElo "2702"]
[BlackElo "2570"]
[TimeControl "180+1"]
[EndTime "10:27:48 PST"]
[Termination "Dixit_Nikhil won by resignation"]

1. d4 {[%clk 0:03:00.9]} 1... Nf6 {[%clk 0:02:58.9]} 2. c4 {[%clk 0:02:59.7]}
2... g6 {[%clk 0:02:59.3]} 3. Nc3 {[%clk 0:02:59.4]} 3... Bg7 {[%clk 0:02:56.7]}
4. Nf3 {[%clk 0:02:59.8]} 4... d6 {[%clk 0:02:57.1]} 5. e4 {[%clk 0:03:00.2]}
5... O-O {[%clk 0:02:55.5]} 6. Be2 {[%clk 0:03:00.7]} 6... e5 {[%clk 0:02:53.9]}
7. O-O {[%clk 0:03:01.1]} 7... exd4 {[%clk 0:02:54.4]} 8. Nxd4 {[%clk 0:03:02]}
8... Re8 {[%clk 0:02:55]} 9. f3 {[%clk 0:03:02.1]} 9... Nc6 {[%clk 0:02:55.4]}
10. Be3 {[%clk 0:03:01.2]} 10... Nh5 {[%clk 0:02:55.7]} 11. Qd2 {[%clk
0:03:01.4]} 11... Nf4 {[%clk 0:02:55.7]} 12. Rfd1 {[%clk 0:03:01.2]} 12... Nxd4
{[%clk 0:02:42.3]} 13. Bxd4 {[%clk 0:02:57.2]} 13... Qg5 {[%clk 0:02:40.5]} 14.
Bf1 {[%clk 0:02:53.6]} 14... Be5 {[%clk 0:02:23.6]} 15. Nd5 {[%clk 0:02:40.3]}
15... Bxd4+ {[%clk 0:02:10.9]} 16. Qxd4 {[%clk 0:02:38.9]} 16... Nxd5 {[%clk
0:02:10.5]} 17. Qxd5 {[%clk 0:02:30.9]} 17... Qe7 {[%clk 0:02:05.2]} 18. Rac1
{[%clk 0:02:27.5]} 18... Be6 {[%clk 0:02:02.9]} 19. Qxb7 {[%clk 0:02:13.2]}
19... Rab8 {[%clk 0:02:02.8]} 20. Qxa7 {[%clk 0:02:13.4]} 20... Rxb2 {[%clk
0:02:03.4]} 21. Qa3 {[%clk 0:02:14.1]} 21... Reb8 {[%clk 0:02:00.6]} 22. Rc3
{[%clk 0:02:02.8]} 22... Qg5 {[%clk 0:01:54.8]} 23. Kh1 {[%clk 0:01:14]} 23...
h5 {[%clk 0:01:41.3]} 24. Qa7 {[%clk 0:00:59.4]} 24... h4 {[%clk 0:01:36.2]} 25.
Qxc7 {[%clk 0:00:51.1]} 25... h3 {[%clk 0:01:35.8]} 26. g3 {[%clk 0:00:50.6]}
26... Rxh2+ {[%clk 0:01:21.9]} 27. Kxh2 {[%clk 0:00:47.6]} 27... Rb2+ {[%clk
0:01:22.3]} 28. Kh1 {[%clk 0:00:37.4]} 28... Qxg3 {[%clk 0:01:22]} 29. Qb8+
{[%clk 0:00:17.7]} 29... Rxb8 {[%clk 0:01:20.9]} 0-1

[Event "*** Titled Tuesday Blitz"]
[Site "Chess.com"]
[Date "2020.03.03"]
[Round "8"]
[White "korbul"]
[Black "JakeCarlosBanawa"]
[Result "1/2-1/2"]
[WhiteElo "2535"]
[BlackElo "2402"]
[TimeControl "180+1"]
[EndTime "10:28:00 PST"]
[Termination "Game drawn - insufficient material"]

1. d4 {[%clk 0:03:00.9]} 1... Nf6 {[%clk 0:02:57.8]} 2. Nf3 {[%clk 0:03:00.4]}
2... e6 {[%clk 0:02:56.4]} 3. Bf4 {[%clk 0:02:59.8]} 3... c5 {[%clk 0:02:54.6]}
4. Nc3 {[%clk 0:02:57]} 4... d5 {[%clk 0:02:46.9]} 5. e3 {[%clk 0:02:53.3]} 5...
Bd6 {[%clk 0:02:46.1]} 6. Ne5 {[%clk 0:02:48.4]} 6... O-O {[%clk 0:02:42.5]} 7.
Nb5 {[%clk 0:02:39.1]} 7... Be7 {[%clk 0:02:34.6]} 8. c3 {[%clk 0:02:33.6]} 8...
a6 {[%clk 0:02:25.3]} 9. Na3 {[%clk 0:02:29.8]} 9... b5 {[%clk 0:02:25.3]} 10.
Nc2 {[%clk 0:02:28.8]} 10... Nfd7 {[%clk 0:02:09.9]} 11. Bd3 {[%clk 0:02:26.9]}
11... Nxe5 {[%clk 0:02:07.7]} 12. dxe5 {[%clk 0:02:24.4]} 12... Nc6 {[%clk
0:01:50.5]} 13. Qh5 {[%clk 0:02:19.1]} 13... g6 {[%clk 0:01:49.7]} 14. Qe2
{[%clk 0:02:18.8]} 14... c4 {[%clk 0:01:44.9]} 15. Nd4 {[%clk 0:02:15]} 15...
Nxd4 {[%clk 0:01:43.2]} 16. exd4 {[%clk 0:02:10.6]} 16... cxd3 {[%clk
0:01:42.7]} 17. Qxd3 {[%clk 0:02:11.5]} 17... Bg5 {[%clk 0:01:42.5]} 18. Bxg5
{[%clk 0:02:10.1]} 18... Qxg5 {[%clk 0:01:41.1]} 19. h4 {[%clk 0:02:11]} 19...
Qf5 {[%clk 0:01:39.9]} 20. Qe3 {[%clk 0:02:11.1]} 20... Qe4 {[%clk 0:01:39.9]}
21. Qxe4 {[%clk 0:02:10.6]} 21... dxe4 {[%clk 0:01:40.8]} 22. h5 {[%clk
0:02:09]} 22... f6 {[%clk 0:01:38.2]} 23. hxg6 {[%clk 0:02:08.3]} 23... hxg6
{[%clk 0:01:37.8]} 24. exf6 {[%clk 0:02:09.2]} 24... Rxf6 {[%clk 0:01:37.2]} 25.
Rh4 {[%clk 0:02:08.7]} 25... Bb7 {[%clk 0:01:31.6]} 26. Rd1 {[%clk 0:02:04.8]}
26... Raf8 {[%clk 0:01:30.6]} 27. Rd2 {[%clk 0:02:04.9]} 27... e3 {[%clk
0:01:25]} 28. fxe3 {[%clk 0:02:04.4]} 28... Rf1+ {[%clk 0:01:24.5]} 29. Ke2
{[%clk 0:02:04.8]} 29... R8f2+ {[%clk 0:01:21.4]} 30. Kd3 {[%clk 0:02:04.9]}
30... Rxd2+ {[%clk 0:01:21.2]} 31. Kxd2 {[%clk 0:02:04.8]} 31... Rf2+ {[%clk
0:01:21.8]} 32. Kd3 {[%clk 0:02:05]} 32... Rxb2 {[%clk 0:01:20.2]} 33. e4 {[%clk
0:02:03.4]} 33... Rxg2 {[%clk 0:01:19.3]} 34. a4 {[%clk 0:02:01.9]} 34... g5
{[%clk 0:01:16.1]} 35. Rh6 {[%clk 0:01:59.6]} 35... Rg3+ {[%clk 0:01:15.5]} 36.
Kd2 {[%clk 0:01:59.7]} 36... Bxe4 {[%clk 0:01:15.5]} 37. Rxe6 {[%clk 0:01:59.7]}
37... Bd5 {[%clk 0:01:08]} 38. Rxa6 {[%clk 0:01:58.5]} 38... Bc4 {[%clk
0:01:02.5]} 39. axb5 {[%clk 0:01:57.2]} 39... Bxb5 {[%clk 0:01:02.2]} 40. Ra7
{[%clk 0:01:56.2]} 40... g4 {[%clk 0:01:00]} 41. Rb7 {[%clk 0:01:55.3]} 41...
Bd3 {[%clk 0:00:56]} 42. d5 {[%clk 0:01:54.2]} 42... Be4 {[%clk 0:00:56.1]} 43.
c4 {[%clk 0:01:53.1]} 43... Rd3+ {[%clk 0:00:54.6]} 44. Ke2 {[%clk 0:01:52.6]}
44... g3 {[%clk 0:00:53.4]} 45. Re7 {[%clk 0:01:51.4]} 45... Bf5 {[%clk
0:00:50]} 46. Re5 {[%clk 0:01:42.3]} 46... Bh7 {[%clk 0:00:38.9]} 47. Rg5+
{[%clk 0:01:39.8]} 47... Kf8 {[%clk 0:00:37.2]} 48. c5 {[%clk 0:01:39]} 48...
Be4 {[%clk 0:00:33.5]} 49. c6 {[%clk 0:01:35.6]} 49... Rxd5 {[%clk 0:00:29.2]}
50. Rxd5 {[%clk 0:01:33.2]} 50... Bxd5 {[%clk 0:00:28.8]} 51. c7 {[%clk
0:01:33.4]} 51... Bb7 {[%clk 0:00:23.8]} 52. c8=Q+ {[%clk 0:01:31.8]} 52... Bxc8
{[%clk 0:00:21.3]} 53. Kf3 {[%clk 0:01:32]} 53... g2 {[%clk 0:00:21.1]} 54. Kxg2
{[%clk 0:01:31.9]} 1/2-1/2

[Event "*** Titled Tuesday Blitz"]
[Site "Chess.com"]
[Date "2020.03.03"]
[Round "8"]
[White "TigrVShlyape"]
[Black "AtabayevSaparmyrat"]
[Result "1-0"]
[WhiteElo "2895"]
[BlackElo "2795"]
[TimeControl "180+1"]
[EndTime "10:28:05 PST"]
[Termination "TigrVShlyape won by resignation"]

1. d4 {[%clk 0:03:00.9]} 1... Nf6 {[%clk 0:02:59.7]} 2. Nf3 {[%clk 0:03:01]}
2... d5 {[%clk 0:02:59.5]} 3. Bf4 {[%clk 0:03:00.5]} 3... Bf5 {[%clk 0:02:59.2]}
4. e3 {[%clk 0:03:00.1]} 4... e6 {[%clk 0:02:59.1]} 5. c4 {[%clk 0:03:00.5]}
5... c6 {[%clk 0:02:58.9]} 6. Nc3 {[%clk 0:02:59.7]} 6... Nbd7 {[%clk
0:02:57.4]} 7. Qb3 {[%clk 0:02:59.5]} 7... Qb6 {[%clk 0:02:55.9]} 8. c5 {[%clk
0:02:59.6]} 8... Qxb3 {[%clk 0:02:55.9]} 9. axb3 {[%clk 0:02:59.8]} 9... a6
{[%clk 0:02:54.7]} 10. h3 {[%clk 0:02:57.1]} 10... Rc8 {[%clk 0:02:42.4]} 11. b4
{[%clk 0:02:54.8]} 11... Be7 {[%clk 0:02:42.2]} 12. Nd2 {[%clk 0:02:51.9]} 12...
Bd8 {[%clk 0:02:35.5]} 13. Nb3 {[%clk 0:02:51.6]} 13... Bc7 {[%clk 0:02:35.8]}
14. Bxc7 {[%clk 0:02:51.5]} 14... Rxc7 {[%clk 0:02:36.7]} 15. b5 {[%clk
0:02:51]} 15... Rc8 {[%clk 0:02:02.9]} 16. bxa6 {[%clk 0:02:40.2]} 16... bxa6
{[%clk 0:02:02.9]} 17. Bxa6 {[%clk 0:02:34.1]} 17... Rb8 {[%clk 0:02:02.5]} 18.
Na5 {[%clk 0:02:33.4]} 18... Rxb2 {[%clk 0:01:57.1]} 19. Nxc6 {[%clk 0:02:31.7]}
19... O-O {[%clk 0:01:38.5]} 20. Ne7+ {[%clk 0:02:29.7]} 20... Kh8 {[%clk
0:01:38.8]} 21. Nxf5 {[%clk 0:02:29.3]} 21... exf5 {[%clk 0:01:39.7]} 22. O-O
{[%clk 0:02:27.3]} 22... Nb8 {[%clk 0:01:28.9]} 23. Bd3 {[%clk 0:02:14.5]} 23...
Rb3 {[%clk 0:01:24.6]} 24. Rfc1 {[%clk 0:02:13.1]} 24... g6 {[%clk 0:01:23.9]}
25. Rab1 {[%clk 0:02:11.4]} 25... Ra3 {[%clk 0:01:21]} 26. Bb5 {[%clk
0:02:10.1]} 26... Rc8 {[%clk 0:01:15.2]} 27. Na4 {[%clk 0:02:07.1]} 27... Rc7
{[%clk 0:01:06.5]} 28. Ra1 {[%clk 0:01:57.8]} 28... Rxa1 {[%clk 0:01:01.4]} 29.
Rxa1 {[%clk 0:01:57.5]} 29... Kg7 {[%clk 0:01:00.1]} 30. Nb6 {[%clk 0:01:54]}
30... Nc6 {[%clk 0:00:58.8]} 31. Bxc6 {[%clk 0:01:52.6]} 31... Rxc6 {[%clk
0:00:57.7]} 32. Ra7 {[%clk 0:01:51.5]} 32... g5 {[%clk 0:00:49.1]} 33. Nd7
{[%clk 0:01:48.2]} 33... Ne4 {[%clk 0:00:23]} 34. Ne5 {[%clk 0:01:43.8]} 34...
Rf6 {[%clk 0:00:23.4]} 35. c6 {[%clk 0:01:35.8]} 35... Nd6 {[%clk 0:00:23]} 36.
Rd7 {[%clk 0:01:34.1]} 36... Kf8 {[%clk 0:00:14.6]} 37. Rxd6 {[%clk 0:01:32.6]}
37... Rxd6 {[%clk 0:00:14.6]} 38. c7 {[%clk 0:01:32.8]} 38... Rc6 {[%clk
0:00:13]} 39. Nxc6 {[%clk 0:01:32.2]} 1-0

[Event "*** Titled Tuesday Blitz"]
[Site "Chess.com"]
[Date "2020.03.03"]
[Round "8"]
[White "JSPrepz"]
[Black "Sibelephant"]
[Result "0-1"]
[WhiteElo "2749"]
[BlackElo "3043"]
[TimeControl "180+1"]
[EndTime "10:28:06 PST"]
[Termination "Sibelephant won by resignation"]

1. e4 {[%clk 0:03:00.9]} 1... c5 {[%clk 0:02:55]} 2. Nf3 {[%clk 0:02:59.8]} 2...
a6 {[%clk 0:02:55.2]} 3. c3 {[%clk 0:02:59.7]} 3... d5 {[%clk 0:02:55.4]} 4.
exd5 {[%clk 0:02:59.6]} 4... Qxd5 {[%clk 0:02:56.1]} 5. d4 {[%clk 0:03:00.5]}
5... Bg4 {[%clk 0:02:56.4]} 6. Be2 {[%clk 0:03:00.2]} 6... e6 {[%clk 0:02:56.5]}
7. Na3 {[%clk 0:03:00.1]} 7... cxd4 {[%clk 0:02:49.1]} 8. cxd4 {[%clk
0:02:59.8]} 8... Bxa3 {[%clk 0:02:42.7]} 9. bxa3 {[%clk 0:02:59.2]} 9... Ne7
{[%clk 0:02:40.6]} 10. O-O {[%clk 0:02:58.5]} 10... O-O {[%clk 0:02:40.5]} 11.
Rb1 {[%clk 0:02:58.5]} 11... b5 {[%clk 0:02:21.7]} 12. h3 {[%clk 0:02:57.6]}
12... Bf5 {[%clk 0:02:20.7]} 13. Rb3 {[%clk 0:02:42.7]} 13... Nbc6 {[%clk
0:02:20.7]} 14. Rc3 {[%clk 0:02:43.2]} 14... Rfd8 {[%clk 0:02:18.5]} 15. Be3
{[%clk 0:02:43.1]} 15... Qxa2 {[%clk 0:02:15]} 16. Nh4 {[%clk 0:02:37.1]} 16...
Be4 {[%clk 0:02:11.4]} 17. Bf3 {[%clk 0:02:14.7]} 17... Qd5 {[%clk 0:01:55.1]}
18. Bxe4 {[%clk 0:02:13.8]} 18... Qxe4 {[%clk 0:01:55]} 19. Nf3 {[%clk
0:02:14.7]} 19... Nd5 {[%clk 0:01:52.9]} 20. Rb3 {[%clk 0:01:20.2]} 20... Na5
{[%clk 0:01:45.3]} 21. Rd3 {[%clk 0:01:20.4]} 21... Nc4 {[%clk 0:01:45.3]} 22.
Bc1 {[%clk 0:01:19.4]} 22... Nf4 {[%clk 0:01:40]} 23. Bxf4 {[%clk 0:01:10.7]}
23... Qxf4 {[%clk 0:01:40.1]} 24. d5 {[%clk 0:01:11.3]} 24... Nb2 {[%clk
0:01:39.3]} 25. Rd4 {[%clk 0:01:08.6]} 25... Nxd1 {[%clk 0:01:39.5]} 26. Rxf4
{[%clk 0:01:08.9]} 26... Nc3 {[%clk 0:01:40.1]} 27. Re1 {[%clk 0:01:02.2]} 27...
Nxd5 {[%clk 0:01:39.9]} 28. Rg4 {[%clk 0:01:02.8]} 28... h6 {[%clk 0:01:38.1]}
29. Ne5 {[%clk 0:01:03]} 29... Rac8 {[%clk 0:01:37.9]} 30. Rg3 {[%clk
0:01:00.5]} 30... Rc3 {[%clk 0:01:35.2]} 31. Re4 {[%clk 0:01:00.7]} 31... Rxg3
{[%clk 0:01:34.3]} 32. fxg3 {[%clk 0:01:01.6]} 32... Rc8 {[%clk 0:01:34.6]} 33.
Kh2 {[%clk 0:01:01.8]} 33... Kf8 {[%clk 0:01:31.2]} 34. g4 {[%clk 0:01:02.7]}
34... Ke7 {[%clk 0:01:30.5]} 35. h4 {[%clk 0:01:03.2]} 35... Rc3 {[%clk
0:01:20.4]} 36. g5 {[%clk 0:01:02.7]} 36... hxg5 {[%clk 0:01:19.2]} 37. hxg5
{[%clk 0:01:03.6]} 37... Rxa3 {[%clk 0:01:19]} 38. g6 {[%clk 0:01:04.1]} 38...
fxg6 {[%clk 0:01:10.4]} 39. Nxg6+ {[%clk 0:01:04.1]} 39... Kd6 {[%clk
0:01:08.5]} 40. Nf8 {[%clk 0:01:03.5]} 40... e5 {[%clk 0:01:08.7]} 41. Ng6
{[%clk 0:01:03.8]} 41... Nf6 {[%clk 0:01:08.6]} 42. Re1 {[%clk 0:00:59.9]} 42...
e4 {[%clk 0:01:06.1]} 43. g3 {[%clk 0:00:59.1]} 43... b4 {[%clk 0:01:05.4]} 44.
Rd1+ {[%clk 0:00:57.7]} 44... Kc5 {[%clk 0:01:04.1]} 45. Nf4 {[%clk 0:00:56.2]}
45... Ng4+ {[%clk 0:01:04]} 46. Kh3 {[%clk 0:00:56.2]} 46... Nf2+ {[%clk
0:01:03.6]} 0-1

[Event "*** Titled Tuesday Blitz"]
[Site "Chess.com"]
[Date "2020.03.03"]
[Round "8"]
[White "Spring199"]
[Black "maestroza"]
[Result "0-1"]
[WhiteElo "2261"]
[BlackElo "2470"]
[TimeControl "180+1"]
[EndTime "10:28:07 PST"]
[Termination "maestroza won by resignation"]

1. d4 {[%clk 0:03:00.9]} 1... Nf6 {[%clk 0:03:00.3]} 2. c4 {[%clk 0:02:59.8]}
2... e6 {[%clk 0:03:00.6]} 3. Nf3 {[%clk 0:02:58.4]} 3... Bb4+ {[%clk
0:03:00.8]} 4. Nbd2 {[%clk 0:02:56.9]} 4... O-O {[%clk 0:02:58]} 5. g3 {[%clk
0:02:56.4]} 5... d5 {[%clk 0:02:56]} 6. Bg2 {[%clk 0:02:55.5]} 6... dxc4 {[%clk
0:02:56.5]} 7. O-O {[%clk 0:02:54.9]} 7... b5 {[%clk 0:02:56.4]} 8. a4 {[%clk
0:02:52.8]} 8... c6 {[%clk 0:02:55.9]} 9. Ne5 {[%clk 0:02:45.1]} 9... Nd5 {[%clk
0:02:49.7]} 10. axb5 {[%clk 0:02:06]} 10... cxb5 {[%clk 0:02:49.4]} 11. Ndf3
{[%clk 0:01:59.6]} 11... Bb7 {[%clk 0:02:45]} 12. e4 {[%clk 0:01:57.5]} 12...
Nf6 {[%clk 0:02:43.7]} 13. Nd2 {[%clk 0:01:47]} 13... Bxd2 {[%clk 0:02:26.5]}
14. Bxd2 {[%clk 0:01:46.1]} 14... Bxe4 {[%clk 0:02:23.4]} 15. Bxe4 {[%clk
0:01:34.3]} 15... Nxe4 {[%clk 0:02:23.1]} 16. Bb4 {[%clk 0:01:33.7]} 16... Re8
{[%clk 0:02:11.3]} 17. Qf3 {[%clk 0:01:32.7]} 17... f5 {[%clk 0:02:11.3]} 18.
Qh5 {[%clk 0:01:20.4]} 18... Re7 {[%clk 0:01:38.5]} 19. Bxe7 {[%clk 0:01:12.9]}
19... Qxe7 {[%clk 0:01:39.4]} 20. Rfe1 {[%clk 0:01:10.5]} 20... Nd7 {[%clk
0:01:28]} 21. Nc6 {[%clk 0:00:59.8]} 21... Qd6 {[%clk 0:01:18.3]} 22. Nxa7
{[%clk 0:00:56.9]} 22... Ndf6 {[%clk 0:01:13.3]} 23. Qf3 {[%clk 0:00:50.1]}
23... Qb6 {[%clk 0:01:00]} 24. Qa3 {[%clk 0:00:21.7]} 24... Qxd4 {[%clk
0:00:59.9]} 25. Red1 {[%clk 0:00:19.2]} 25... Qxf2+ {[%clk 0:00:59.1]} 26. Kh1
{[%clk 0:00:18.8]} 26... Ng4 {[%clk 0:00:51.8]} 0-1